Cogmind - Beta 16 @@@ ROGUE MODE // 2025.11.11 @ 02:33:17 Player: Demo Result: Destroyed by P-80 Master with Gamma Rifle Performance ------------- Evolutions (7) 3500 Regions Visited (12) 2400 Robots Destroyed (127) 635 Value Destroyed (7516) 7516 Prototype IDs (8) 160 Alien Tech Used (0) 0 Bonus (5133) 5133 TOTAL SCORE: 19344 Bonus ------- High Alert Combat Kills 2399 Follower Combat Kills 208 Entered Garrisons 400 Used RIF Installer 1000 Entered DSFs 500 Registered with UFD 300 Met Optimus in HQ 500 Friendly Fire -174 Cogmind --------- Core Integrity 0/1300 Matter 76/300 Energy 87/100 System Corruption 14% Temperature Cool (0) Movement Core (50) Location -3/Research Parts ------- > --- POWER (2) -------- (None) > --- PROPULSION (5) --- (None) > --- UTILITY (10) ----- Melee Analysis Suite Improved Melee Analysis Suite Relay Coupler [NC] (31) > --- WEAPON (4) ------- (None) > --- INVENTORY (5) ---- Light Particle Reactor Matter Compressor (0) Heavy Linear Accelerator Improved Remote Datajack Peak State ------------ > --- POWER ------------ Particle Reactor > --- PROPULSION ------- Medium Treads Improved Heavy Treads Biometal Heavy Treads > --- UTILITY ---------- Advanced Cooling System High-capacity Storage Unit Matter Compressor Improved Heavy Armor Plating Advanced Hacking Suite Advanced Hacking Suite Advanced Hacking Suite Long-range Tractor Beam > --- WEAPON ----------- Heavy Phase Cannon Hypervelocity Railgun Heavy Mass Driver > --- INVENTORY -------- Antimatter Reactor Armored Medium Treads Improved Heavy Treads Improved Heavy Treads Advanced Cryofiber Web Matter Compressor Experimental Terrain Scanner Advanced Hacking Suite Relay Coupler [NC] Relay Coupler [NC] Relay Coupler [NC] Relay Coupler [NC] Mini Grenade Launcher Mini Grenade Launcher Remote Datajack CPS Tube Enhanced Force Lance [Rating: 125] Favorites ----------- Power Particle Reactor Engine Angular Momentum Engine Power Core Light Nuclear Core Reactor Particle Reactor Propulsion Light Treads Treads Light Treads Leg Carbon-fiber Leg Wheel Armored Huge Wheel Flight Unit Field Propulsion Array Utility High-capacity Storage Unit Device Improved Kinecellerator Storage High-capacity Storage Unit Processor Enhanced Optical Array Hackware Advanced Hacking Suite Protection Utility Shielding Weapon Heavy Mass Driver Energy Gun Heavy Laser Energy Cannon Ion Cannon Ballistic Gun Hypervelocity Railgun Ballistic Cannon Heavy Mass Driver Launcher Mini Grenade Launcher Special Weapon CPS Tube Slashing Weapon Axe Piercing Weapon Enhanced Force Lance Build | -11 -10 -10 -10 -9 -6 -6 -6 -6 -5 -5 -4 -3 ------- Run | Yrd Mat Min Sub Scr Fac Gar Fac Gar Fac DSF Fac Res Slots Evolved 14 | . . . . . 8 . . . 2 . 2 2 Power 1 | . . . . . . . . . . . . 1 Propulsion 3 | . . . . . 3 . . . . . . . Utility 8 | . . . . . 4 . . . 2 . 1 1 Weapon 2 | . . . . . 1 . . . . . 1 . Parts Attached 121 | 2 . 1 . 6 17 29 2 10 . 11 33 10 Power 10 | . . . . . 1 5 . . . . 1 3 Engine 3 | . . . . . . 2 . . . . . 1 Core 3 | . . . . . 1 2 . . . . . . Reactor 4 | . . . . . . 1 . . . . 1 2 Propulsion 29 | 2 . . . . 7 6 . 5 . . 7 2 Treads 17 | 2 . . . . 4 2 . 4 . . 5 . Leg 4 | . . . . . . 1 . 1 . . 2 . Wheel 6 | . . . . . 3 3 . . . . . . Hover . | . . . . . . . . . . . . . Flight 2 | . . . . . . . . . . . . 2 Utility 49 | . . 1 . 4 4 10 1 4 . 9 14 2 Device 16 | . . 1 . . 1 5 . 2 . 4 3 . Storage 5 | . . . . 2 1 . . . . 1 1 . Processor 9 | . . . . 1 2 . 1 . . . 3 2 Hackware 8 | . . . . . . . . . . 3 5 . Protection 11 | . . . . 1 . 5 . 2 . 1 2 . Artifact . | . . . . . . . . . . . . . Weapon 33 | . . . . 2 5 8 1 1 . 2 11 3 Energy Gun 1 | . . . . . . 1 . . . . . . Energy Cannon 5 | . . . . . 4 . . . . . 1 . Ballistic Gun 6 | . . . . . . 1 . . . 1 4 . Ballistic Cannon 10 | . . . . . 1 4 . . . 1 1 3 Launcher 4 | . . . . . . 1 . . . . 3 . Special Weapon 4 | . . . . 1 . . 1 . . . 2 . Impact Weapon . | . . . . . . . . . . . . . Slashing Weapon 2 | . . . . 1 . 1 . . . . . . Piercing Weapon 1 | . . . . . . . . 1 . . . . Special Melee Weapon . | . . . . . . . . . . . . . Unidentified Prototypes 2 | . . . . . . . . 1 . . 1 . Parts Lost 52 | . . . . . 3 13 . 3 . 4 18 11 Power 4 | . . . . . . 1 . . . . 2 1 Propulsion 18 | . . . . . 3 6 . 1 . . 3 5 Utility 19 | . . . . . . 4 . 2 . 2 7 4 Weapon 11 | . . . . . . 2 . . . 2 6 1 Highest Loss Streak 13 | . . . . . 2 5 . 2 . 2 13 4 To Critical Strikes 2 | . . . . . . . . . . . 1 1 Average Backups 14 | . . . . 9 16 16 17 17 17 17 14 3 Power . | . . . . . 1 . . 1 1 1 . . Propulsion 1 | . . . . . 1 1 2 2 2 3 2 . Utility 6 | . . . . 4 6 6 9 7 7 7 7 . Weapon 4 | . . . . 3 4 4 4 4 5 4 3 1 Tool/Special . | . . . . . . . . . . . . . Unused Backups 36 | . . . . 5 5 14 1 5 . 1 5 . Power 2 | . . . . . . 1 . . . 1 . . Propulsion 8 | . . . . . . 4 . 4 . . . . Utility 14 | . . . . . 3 5 1 1 . . 4 . Weapon 10 | . . . . 5 1 3 . . . . 1 . Tool/Special 2 | . . . . . 1 1 . . . . . . Average Slot Usage (%) 74 | . 28 34 42 77 81 81 73 72 64 72 74 34 Engine 1 | . . . . . 3 3 . . . . . . Reactor 2 | . . . . . . . 6 6 5 5 3 2 Treads 15 | . 28 28 28 28 16 11 6 13 17 17 13 1 Leg 1 | . . . . . . 2 . . . . 1 5 Wheel 4 | . . . . . 4 8 13 6 . . . . Device 5 | . . 6 14 1 1 5 6 7 11 13 7 5 Storage 6 | . . . . 8 6 6 6 6 5 9 8 . Processor 12 | . . . . 12 18 19 13 11 5 1 2 5 Hackware 3 | . . . . . . . . . . 6 17 7 Protection 4 | . . . . 3 5 6 6 5 5 3 3 . Energy Cannon 2 | . . . . . 16 . . . . . 2 . Ballistic Gun 1 | . . . . . . . 1 2 . 3 8 . Ballistic Cannon 4 | . . . . . 2 7 6 6 5 5 1 3 Special Weapon 2 | . . . . 11 . . 3 . . . . . Slashing Weapon 2 | . . . . 10 . 3 . . . . . . Peak Build Rating 125 | 2 2 3 3 16 42 70 67 86 86 107 125 98 Average Rating 56 | 1 2 2 3 12 31 58 66 76 86 98 104 51 On Entrance 39 | . 2 2 3 3 11 41 65 67 86 86 98 55 Avg Prop Armor Cover (%) 21 | 41 41 40 39 35 16 6 4 4 . . 34 23 Naked Turns . | . . . . . . . . . . . . . Heaviest Build 121 | . . 1 1 43 70 102 102 106 95 111 121 74 Greatest Support 178 | 3 3 40 3 40 108 88 56 170 170 170 178 75 Greatest Overweight (x) 6 | . . . . 1 6 3 1 3 . . 1 . Average Overweight (x) . | . . . . . 2 1 1 . . . . . Largest Inventory Capacity 20 | 5 5 5 5 20 20 20 20 20 20 20 20 5 Average Capacity 17 | 5 5 5 5 11 20 20 20 20 20 20 16 5 Most Carried 20 | . 1 1 . 17 20 20 20 20 20 20 20 5 Average Carried 16 | . . . . 10 17 19 19 19 20 19 15 4 Final Capacity 20 | 5 5 5 5 20 20 20 20 20 20 20 5 5 Final Carried 20 | . 1 . . 17 20 20 20 20 20 20 4 5 Class Distribution -------------------- 30% | Mutant 19% | Bothacker-Mutant 9% | Hacker-Tank 9% | Gunner 7% | Scavenger-Gunner 7% | Bothacker-Gunner 5% | Scavenger-Mutant 4% | Bothacker-Tank Dominant Class ---------------- Mutant | -10/Materials Mutant | -10/Mines Mutant | -10/Subcaves Mutant | -9/Scraptown Gunner | -6/Factory Bothacker-Mutant | -6/Garrison Bothacker-Gunner | -6/Factory Bothacker-Mutant | -6/Garrison Bothacker-Mutant | -5/Factory Scavenger-Tank | -5/DSF Hacker-Tank | -4/Factory Mutant | -3/Research Resources | -11 -10 -10 -10 -9 -6 -6 -6 -6 -5 -5 -4 -3 ----------- Run | Yrd Mat Min Sub Scr Fac Gar Fac Gar Fac DSF Fac Res Matter Collected 5635 | 220 . . . 40 321 1732 204 1190 . 414 1193 321 Remotely 663 | . . . . . . . . . . . 663 . Salvage Created 6837 | . . . . . 482 1529 74 1999 . 771 1791 191 Parts 268 | . . 1 . . 18 46 4 72 . 26 98 3 Haulers Intercepted 1 | . . . . . . . . 1 . . . . Recyclers Shooed 2 | . . . . . . . . . . . 2 . Parts Field Recycled . | . . . . . . . . . . . . . Retrieved Matter . | . . . . . . . . . . . . . Parts Self-Destructed . | . . . . . . . . . . . . . Prevented . | . . . . . . . . . . . . . Parts Restored . | . . . . . . . . . . . . . Kills | -11 -10 -10 -10 -9 -6 -6 -6 -6 -5 -5 -4 -3 ------- Run | Yrd Mat Min Sub Scr Fac Gar Fac Gar Fac DSF Fac Res Combat Hostiles Destroyed 112 | . . 1 . . 5 35 2 23 . 11 31 4 Melee 3 | . . 1 . . . 1 . 1 . . . . Guns 15 | . . . . . . . 1 1 . 3 10 . Cannons 56 | . . . . . 5 26 1 11 . 6 4 3 AOE 35 | . . . . . . 8 . 10 . 2 15 . Classes Destroyed 16 | . . 1 . . 8 2 . 2 . 1 1 1 Worker 7 | . . . . . 4 . 1 . . . 2 . Builder 1 | . . . . . . . . . . . 1 . Hauler 1 | . . . . . . . . 1 . . . . Recycler 3 | . . . . . 1 . . . . . 1 1 Mechanic 2 | . . . . . 1 . . . . . 1 . Swarmer 22 | . . 1 . . . 7 . 10 . . 4 . Cutter 1 | . . . . . . . . . . . . 1 Grunt 43 | . . . . . 1 11 2 8 . 5 14 2 Brawler 5 | . . . . . 1 . . 1 . 1 1 1 Duelist 3 | . . . . . 1 2 . . . . . . Sentry 10 | . . . . . 1 7 . 1 . . 1 . Specialist 4 | . . . . . . . . . . 2 2 . Hunter 5 | . . . . . . 2 . . . . 3 . Programmer 16 | . . . . . 1 5 . 3 . 2 5 . Heavy 2 | . . . . . . . . . . 1 1 . Behemoth 1 | . . . . . . 1 . . . . . . Infiltrator 1 | . . . . . . . . 1 . . . . Best Kill Streak 8 | . . 1 . . 4 7 2 8 . 6 6 2 Combat Bots Only 8 | . . 1 . . 3 7 2 8 . 6 5 1 Max Kills in Single Turn 4 | . . 1 . . 1 2 1 2 . 2 4 1 Gunslinging . | . . . . . . . . . . . . . Exploded 4 | . . . . . . 2 . 2 . 1 4 . Melee 1 | . . 1 . . . 1 . 1 . . . . Uniques/NPCs Destroyed . | . . . . . . . . . . . . . Combat | -11 -10 -10 -10 -9 -6 -6 -6 -6 -5 -5 -4 -3 -------- Run | Yrd Mat Min Sub Scr Fac Gar Fac Gar Fac DSF Fac Res Hostile Shots Fired 1155 | . . 47 . . 34 445 12 54 . 129 280 154 Missed 380 | . . 15 . . 12 148 3 15 . 38 88 61 Hits 775 | . . 32 . . 22 297 9 39 . 91 192 93 Melee 26 | . . . . . 8 . . 2 . 2 2 12 Projectile 749 | . . 32 . . 14 297 9 37 . 89 190 81 AOE 1 | . . . . . . . . . . . . 1 Critical Strikes 36 | . . 3 . . 3 2 1 1 . 5 13 8 Actively Blocked 1 | . . . . . . . . . . . 1 . Damage Taken 13438 | . . 262 . . 462 2970 172 708 . 1701 4674 2489 Core 2417 | . . 90 . . 32 371 . 69 . 180 365 1310 Absorbed by Shields . | . . . . . . . . . . . . . Reduced by Siege Mode 198 | . . . . . . . . . . 62 136 . Redirected to Shielding 143 | . . . . . 5 . . . . 46 92 . Ignored by Resistances 92 | . . . . . . 92 . . . . . . Regen/Repaired (Parts) 300 | . . . . . . . 102 . . . 64 134 Core Remaining (%) 71 | 100 . . . 64 . . . 44 . 82 68 . Volleys Fired 321 | . . . . . 29 102 9 39 . 35 89 18 Largest 4 | . . . . . 3 2 2 2 . 2 4 2 Hottest 195 | . . . . . 180 109 93 93 . 105 195 140 Shots Fired 550 | . . . . . 65 137 16 53 . 61 189 29 Gun 145 | . . . . . . . 7 14 . 27 97 . Cannon 348 | . . . . . 65 121 9 31 . 27 71 24 Launcher 46 | . . . . . . 16 . 8 . 7 12 3 Special 11 | . . . . . . . . . . . 9 2 Kinetic 386 | . . . . . 13 121 16 45 . 54 113 24 Thermal 107 | . . . . . 52 . . . . . 55 . Explosive 41 | . . . . . . 16 . 8 . 7 10 . Electromagnetic 5 | . . . . . . . . . . . 2 3 Robot Hit Streak 20 | . . . . . 20 20 6 5 . 20 11 16 Robot Miss Streak 9 | . . . . . 5 3 1 3 . 4 9 2 Penetration Max 1 | . . . . . . 1 . . . 1 1 1 Secondary Targets . | . . . . . . . . . . . . . Shots Hit Robots 427 | . . . . . 45 122 12 66 . 46 114 22 Core Hits 243 | . . 1 . . 24 63 4 49 . 30 65 7 Critical Kills 6 | . . . . . . . . 1 . . 5 . Critical Parts Destroyed 16 | . . . . . . . . . . 3 13 . Critical Strikes 58 | . . . . . . 16 1 12 . 5 20 4 Destroy 22 | . . . . . . . . 1 . 3 18 . Blast 26 | . . . . . . 15 1 2 . 2 2 4 Sever 1 | . . . . . . 1 . . . . . . Impale 9 | . . . . . . . . 9 . . . . Melee Attacks 199 | . . . . . . 139 . 60 . . . . Impact . | . . . . . . . . . . . . . Slashing 158 | . . . . . . 139 . 19 . . . . Piercing 41 | . . . . . . . . 41 . . . . Sneak Attacks 1 | . . . . . . . . 1 . . . . Combat Hostiles 1 | . . . . . . . . 1 . . . . Follow-up Attacks . | . . . . . . . . . . . . . Damage Inflicted 26053 | . . 4 . . 1148 8086 752 5676 . 2930 5645 1812 Guns 2127 | . . . . . . . 97 219 . 544 1267 . Cannons 13746 | . . . . . 1148 5205 655 1564 . 1776 1774 1624 Explosions 5277 | . . . . . . 1002 . 881 . 610 2596 188 Melee 4891 | . . . . . . 1879 . 3012 . . . . Ramming 12 | . . 4 . . . . . . . . 8 . Kinetic 13770 | . . . . . 280 5205 752 1783 . 2320 1806 1624 Thermal 2153 | . . . . . 868 . . . . . 1285 . Explosive 4841 | . . . . . . 1002 . 881 . 610 2348 . Electromagnetic 386 | . . . . . . . . . . . 198 188 Impact . | . . . . . . . . . . . . . Slashing 2168 | . . . . . . 1879 . 289 . . . . Piercing 2723 | . . . . . . . . 2723 . . . . Highest Corruption 13 | . . . . . . 6 6 11 . 5 9 13 Average Corruption 4 | . . . . . . 3 6 7 . 4 2 12 Corruption Purged . | . . . . . . . . . . . . . Corruption Blocked . | . . . . . . . . . . . . . Effects 103 | . . . . . . 40 3 41 . 2 7 10 Message Errors 27 | . . . . . . 8 1 13 . . 3 2 Matter Fused 20 | . . . . . . 10 . 8 . 2 . . Heat Flow Errors 11 | . . . . . . 5 . 5 . . . 1 Energy Discharges 14 | . . . . . . 5 2 5 . . 1 1 Parts Rejected 2 | . . . . . . . . . . . . 2 Parts Fused 4 | . . . . . . 1 . 2 . . 1 . Data Loss (minor) 9 | . . . . . . 4 . 2 . . 1 2 Data Loss (major) 3 | . . . . . . 1 . 1 . . 1 . Misfires 6 | . . . . . . 4 . 2 . . . . Alerts 2 | . . . . . . 1 . 1 . . . . Misdirections 2 | . . . . . . . . . . . . 2 Weapon Failures 3 | . . . . . . 1 . 2 . . . . Overload Shots . | . . . . . . . . . . . . . Overflow Damage 1588 | . . . . . 11 618 105 296 . 138 267 153 Projectiles 1312 | . . . . . 11 589 105 132 . 138 190 147 Explosions 108 | . . . . . . 25 . . . . 77 6 Melee 168 | . . . . . . 4 . 164 . . . . Knockbacks 57 | . . . . . 7 21 6 5 . 10 4 4 Impact . | . . . . . . . . . . . . . Kinetic 52 | . . . . . 7 17 6 5 . 9 4 4 Secondary 5 | . . . . . . 4 . . . 1 . . Self-Inflicted Damage 274 | . . . . . . . . . . 46 168 60 Shots 6 | . . . . . . . . . . 1 3 2 Rammed 12 | . . 10 . . . . . . . . 2 . Targets Rammed 13 | . . 11 . . . . . . . . 2 . Kicked . | . . . . . . . . . . . . . Crushed 1 | . . 1 . . . . . . . . . . Highest Temperature 280 | . . . . . 165 249 203 280 . . 276 150 Average Temperature 75 | . . . . . 68 81 105 78 . . 57 20 Received Heat Transfer 2273 | . . . . . 30 672 99 207 . 471 505 289 Effects 5 | . . . . . . 1 . 4 . . . . Interference 5 | . . . . . . 1 . 4 . . . . Siege Activations 5 | . . . . . . . . . . 3 2 . Total Turns 79 | . . . . . . . . . . 22 57 . Longest Duration 40 | . . . . . . . . . . 13 40 . Martial Activations . | . . . . . . . . . . . . . Shielding Activations . | . . . . . . . . . . . . . Robots Disrupted . | . . . . . . . . . . . . . Combat Hostiles . | . . . . . . . . . . . . . Robots Corrupted 2 | . . . . . . . . . . . 2 . Combat Hostiles 2 | . . . . . . . . . . . 2 . Parts Fried 4 | . . . . . . . . . . . 2 2 Impact Corruptions . | . . . . . . . . . . . . . Robots Melted . | . . . . . . . . . . . . . Combat Hostiles . | . . . . . . . . . . . . . Parts Melted 3 | . . . . . 1 2 . . . . . . Heat Transferred 2590 | . . . . . 1332 . . . . . 1258 . Parts Sabotaged . | . . . . . . . . . . . . . Parts Stolen . | . . . . . . . . . . . . . Parts Stripped . | . . . . . . . . . . . . . Power Chain Reactions 1 | . . . . . . . . . . . 1 . Alert | -11 -10 -10 -10 -9 -6 -6 -6 -6 -5 -5 -4 -3 ------- Run | Yrd Mat Min Sub Scr Fac Gar Fac Gar Fac DSF Fac Res Maximum Alert Level 5 | . . . . . . 5 3 5 3 3 4 3 Low Security (%) 18 | 100 100 100 . . 100 10 . . . . . . Level 1 6 | . . . . . . 16 . . . . 4 . Level 2 23 | . . . . . . 12 . 20 . 38 58 70 Level 3 26 | . . . . . . 32 100 15 100 61 27 29 Level 4 22 | . . . . . . 26 . 55 . . 9 . Level 5 2 | . . . . . . 2 . 7 . . . . High Security . | . . . . . . . . . . . . . Max Security . | . . . . . . . . . . . . . Sterilizations 1 | . . . . . . . . . . 1 . . Peak Influence 1704 | . . 20 . . 54 1704 894 1661 871 931 1236 763 Initial 894 | . . . . . . 2 894 609 871 613 488 631 Average 747 | . . . . . 14 836 875 1176 871 740 713 649 Influence Increases 5679 | . . 20 . . 224 1892 57 1102 5 358 1624 397 Destroy 0b10 Robot/C 2460 | . . 20 . . 100 700 40 560 . 220 740 80 Destroy 0b10 Robot/NC 180 | . . . . . 30 35 5 55 . 20 30 5 Destroy Leader 310 | . . . . . 20 60 10 40 . 40 130 10 Allied During Kill 73 | . . . . . . . . 64 . . 9 . Successful Hack 64 | . . . . . 29 7 . . 5 . 23 . Select Force Hacks 50 | . . . . . . . . . . . . 50 Disable Machine 240 | . . . . . 45 30 . . . . 150 15 Anti-Garrison Action 1100 | . . . . . . 750 . 200 . . 150 . Destroy Structure 797 | . . . . . . 280 2 93 . 78 332 12 Partial Spotted 30 | . . . . . . . . . . . 15 15 Lose Combat Pursuer 375 | . . . . . . 30 . 90 . . 45 210 Influence Decreases 4931 | . . 10 6 4 221 191 890 312 790 303 1351 853 Entered New Map 3152 | . . . 6 4 . 1 810 262 790 263 443 573 Time Decay 909 | . . 10 . . 201 . 80 . . . 458 160 Lost Part 510 | . . . . . 20 130 . 30 . 40 180 110 Lost Ally 210 | . . . . . . 60 . 20 . . 120 10 Purge Threat 150 | . . . . . . . . . . . 150 . Squads Dispatched 23 | . . . . . 1 . 1 . . 2 15 4 Investigation 5 | . . . . . . . 1 . . . 3 1 Extermination 4 | . . . . . 1 . . . . . 2 1 Reinforcement 10 | . . . . . . . . . . 2 6 2 Assault 4 | . . . . . . . . . . . 4 . Garrison . | . . . . . . . . . . . . . Intercept . | . . . . . . . . . . . . . Searches Triggered . | . . . . . . . . . . . . . Construction Impeded 1 | . . . . . . . . . . . 1 . Haulers Reinforced 1 | . . . . . . . . . . . 1 . Active Scanning Responses . | . . . . . . . . . . . . . Cargo Convoy Interrupts . | . . . . . . . . . . . . . Stealth | -11 -10 -10 -10 -9 -6 -6 -6 -6 -5 -5 -4 -3 --------- Run | Yrd Mat Min Sub Scr Fac Gar Fac Gar Fac DSF Fac Res Distress Signals 12 | . . . . . 1 . . . . . 9 2 Communications Jammed . | . . . . . . . . . . . . . Distress Signals . | . . . . . . . . . . . . . Times Spotted 182 | . 2 3 . . 11 36 4 22 . 11 61 32 Peak Tracking Total 15 | . 1 3 . . 4 7 3 10 . 5 8 15 Tactical Retreats 12 | . . . . . . 2 . 3 . . 2 5 Traps | -11 -10 -10 -10 -9 -6 -6 -6 -6 -5 -5 -4 -3 ------- Run | Yrd Mat Min Sub Scr Fac Gar Fac Gar Fac DSF Fac Res Traps Triggered 10 | . . . . . 1 5 . 2 . . 1 1 Indirectly . | . . . . . . . . . . . . . Trap Hack Attempts . | . . . . . . . . . . . . . Triggered . | . . . . . . . . . . . . . Disarmed . | . . . . . . . . . . . . . Reprogrammed . | . . . . . . . . . . . . . Reused . | . . . . . . . . . . . . . Traps Extracted . | . . . . . . . . . . . . . Installed . | . . . . . . . . . . . . . Triggered . | . . . . . . . . . . . . . Machines | -11 -10 -10 -10 -9 -6 -6 -6 -6 -5 -5 -4 -3 ---------- Run | Yrd Mat Min Sub Scr Fac Gar Fac Gar Fac DSF Fac Res Machines Disabled 23 | . . . . . 3 6 . 2 . . 11 1 Max in Single Turn 5 | . . . . . 2 1 . 1 . . 5 1 Garrison Access 2 | . . . . . . . . . . . 1 1 Garrison Relay 6 | . . . . . . 4 . 2 . . . . Machines Repaired . | . . . . . . . . . . . . . Machines Dismantled . | . . . . . . . . . . . . . Machines Sabotaged . | . . . . . . . . . . . . . Overloaded Fab Kills 2 | . . . . . . . . . . . . 2 Hacking | -11 -10 -10 -10 -9 -6 -6 -6 -6 -5 -5 -4 -3 --------- Run | Yrd Mat Min Sub Scr Fac Gar Fac Gar Fac DSF Fac Res Machines Accessed 26 | . . . . 4 5 3 2 . 1 . 8 3 Terminals 8 | . . . . . 2 3 . . 1 . 1 1 Fabricators 4 | . . . . . . . . . . . 3 1 Repair Stations 3 | . . . . . 1 . 1 . . . 1 . Recycling Units 2 | . . . . . . . . . . . 2 . Scanalyzers 2 | . . . . . 1 . . . . . 1 . Garrison Access 3 | . . . . . 1 . 1 . . . . 1 Total Hacks 73 | . . . . 21 13 7 2 . 3 . 21 6 Successful 47 | . . . . 21 5 1 2 . 1 . 13 4 Failed 26 | . . . . . 8 6 . . 2 . 8 2 Catastrophic 4 | . . . . . 1 2 . . . . 1 . Database Lockouts . | . . . . . . . . . . . . . Manual 21 | . . . . . 3 . 1 . . . 13 4 Terminals 19 | . . . . . 3 7 . . 3 . 2 4 Fabricators 11 | . . . . . . . . . . . 10 1 Repair Stations 9 | . . . . . 5 . 1 . . . 3 . Recycling Units 4 | . . . . . . . . . . . 4 . Scanalyzers 6 | . . . . . 4 . . . . . 2 . Garrison Access 3 | . . . . . 1 . 1 . . . . 1 Terminal Hacks 24 | . . . . 21 . 1 . . 1 . . 1 Record 14 | . . . . 14 . . . . . . . . Robot Analysis 7 | . . . . 7 . . . . . . . . Open Door 1 | . . . . . . 1 . . . . . . Open DSF 1 | . . . . . . . . . 1 . . . Branch Access Points 1 | . . . . . . . . . . . . 1 Fabricator Hacks 2 | . . . . . . . . . . . 2 . Network Status 1 | . . . . . . . . . . . 1 . Build 1 | . . . . . . . . . . . 1 . Repair Station Hacks 2 | . . . . . 1 . . . . . 1 . Refit 2 | . . . . . 1 . . . . . 1 . Recycling Unit Hacks 1 | . . . . . . . . . . . 1 . Retrieve Components 1 | . . . . . . . . . . . 1 . Scanalyzer 4 | . . . . . 2 . . . . . 2 . Retrieve Study 4 | . . . . . 2 . . . . . 2 . Garrison Access Hacks 3 | . . . . . 1 . 1 . . . . 1 Unlock Access 2 | . . . . . 1 . 1 . . . . . Seal Access 1 | . . . . . . . . . . . . 1 Unauthorized Hacks 11 | . . . . . 1 . 1 . . . 7 2 Terminals 3 | . . . . . 1 . . . . . 1 1 Botnet 3 | . . . . . 1 . . . . . 1 1 Fabricators 5 | . . . . . . . . . . . 4 1 Report 1 | . . . . . . . . . . . 1 . Prioritize 1 | . . . . . . . . . . . 1 . Liberate 1 | . . . . . . . . . . . 1 . Fabnet 1 | . . . . . . . . . . . 1 . Overload 1 | . . . . . . . . . . . . 1 Repair Stations 1 | . . . . . . . 1 . . . . . Patch 1 | . . . . . . . 1 . . . . . Recycling Units 2 | . . . . . . . . . . . 2 . Fedlink 1 | . . . . . . . . . . . 1 . Scrapoids 1 | . . . . . . . . . . . 1 . Scanalyzers . | . . . . . . . . . . . . . Garrison Access . | . . . . . . . . . . . . . Data Cores Recovered . | . . . . . . . . . . . . . Used . | . . . . . . . . . . . . . Hacking Detections 16 | . . . . . 5 3 . . 1 . 6 1 Full Trace Events 2 | . . . . . . 1 . . . . 1 . Feedback Events 1 | . . . . . . . . . . . 1 . Corruption 1 | . . . . . . . . . . . 1 . Feedback Blocked . | . . . . . . . . . . . . . Robot Schematics Acquired . | . . . . . . . . . . . . . Robots Built . | . . . . . . . . . . . . . Authchips . | . . . . . . . . . . . . . Time . | . . . . . . . . . . . . . Total Robot Build Rating . | . . . . . . . . . . . . . Part Schematics Acquired . | . . . . . . . . . . . . . Parts Built 1 | . . . . . . . . . . . 1 . Authchips . | . . . . . . . . . . . . . Time 69 | . . . . . . . . . . . 69 . Total Part Build Rating 9 | . . . . . . . . . . . 9 . Part Studies Acquired 4 | . . . . . 2 . . . . . 2 . Parts Repaired . | . . . . . . . . . . . . . Time . | . . . . . . . . . . . . . Parts Recycled . | . . . . . . . . . . . . . Recycled Matter . | . . . . . . . . . . . . . Retrieved Matter . | . . . . . . . . . . . . . Retrieved Components 8 | . . . . . . . . . . . 8 . Parts Scanalyzed . | . . . . . . . . . . . . . Part Schematics Acquired . | . . . . . . . . . . . . . Parts Damaged . | . . . . . . . . . . . . . Bothacking | -11 -10 -10 -10 -9 -6 -6 -6 -6 -5 -5 -4 -3 ------------ Run | Yrd Mat Min Sub Scr Fac Gar Fac Gar Fac DSF Fac Res Used RIF Installer 2 | . . . . . . 1 . 1 . . . . Program Shield 1 | . . . . . . . . 1 . . . . Robots Hacked 6 | . . . . . . . . . . . 4 2 Non-combat 6 | . . . . . . . . . . . 4 2 Combat . | . . . . . . . . . . . . . Robot Hacks Applied 7 | . . . . . . . . . . . 5 2 drop_inventory 1 | . . . . . . . . . . . . 1 purge_threat 1 | . . . . . . . . . . . 1 . amplify_resonance 2 | . . . . . . . . . . . 2 . formatsys_low 3 | . . . . . . . . . . . 2 1 Relay Couplers Released 30 | . . . . . . 17 . 10 . . 3 . Machine Destruction 30 | . . . . . . 17 . 10 . . 3 . Attached 3 | . . . . . . . . . . . 3 . Fabnet Peak Effective % 3 | . . . . . . . . . . . . 3 Robots Rewired . | . . . . . . . . . . . . . Allies Hacked . | . . . . . . . . . . . . . Hacks Repelled . | . . . . . . . . . . . . . Allies | -11 -10 -10 -10 -9 -6 -6 -6 -6 -5 -5 -4 -3 -------- Run | Yrd Mat Min Sub Scr Fac Gar Fac Gar Fac DSF Fac Res Total Allies 13 | . . . . . . 3 . 2 . . 7 1 Largest Group 5 | . . . . . . 2 . 2 . . 5 1 Highest-Rated Group 238 | . . . . . . 142 . 190 . . 238 14 Highest-Rated Ally 95 | . . . . . . 80 . 95 . . 50 14 Total Orders 5 | . . . . . . . . . . . 4 1 ROAM 3 | . . . . . . . . . . . 3 . AID 2 | . . . . . . . . . . . 1 1 Ally Attacks 101 | . . . . . . 2 . 27 . . 72 . Total Damage 2374 | . . . . . . 79 . 1046 . . 1249 . Kills 12 | . . . . . . . . 5 . . 7 . Allies Corrupted . | . . . . . . . . . . . . . Allies Melted . | . . . . . . . . . . . . . Intel | -11 -10 -10 -10 -9 -6 -6 -6 -6 -5 -5 -4 -3 ------- Run | Yrd Mat Min Sub Scr Fac Gar Fac Gar Fac DSF Fac Res Active Infowar (turns) 6277 | . . 60 9 1486 810 2472 162 1014 . 194 70 . Optics 4295 | . . . . . 647 2472 162 1014 . . . . Terrain 535 | . . 60 9 202 . . . . . 194 70 . Machine Analysis 4250 | . . . . 1284 810 2156 . . . . . . Robot Analysis Total 7 | . . . . 7 . . . . . . . . Derelict Logs Recovered . | . . . . . . . . . . . . . Drone Launches . | . . . . . . . . . . . . . Drone Recoveries . | . . . . . . . . . . . . . Exploration | -11 -10 -10 -10 -9 -6 -6 -6 -6 -5 -5 -4 -3 ------------- Run | Yrd Mat Min Sub Scr Fac Gar Fac Gar Fac DSF Fac Res Turns Passed 8224 | 20 32 129 9 1488 810 2472 162 1304 4 321 1141 332 Spaces Moved 5204 | 33 62 207 15 1297 394 1244 106 659 3 101 660 423 Core 1489 | 33 62 205 15 720 . . . . . . 185 269 Treads 1903 | . . 2 . 577 139 291 . 361 3 101 388 41 Legs 87 | . . . . . . . . . . . 87 . Wheels 1612 | . . . . . 255 953 106 298 . . . . Hover . | . . . . . . . . . . . . . Flight 113 | . . . . . . . . . . . . 113 Fastest Speed 37 | 50 50 50 50 50 120 115 115 115 160 160 50 37 Average Speed 116 | 50 50 51 50 112 155 129 115 139 160 160 117 57 Slowest Speed 240 | 50 50 160 50 240 240 160 115 160 160 160 160 160 Overloaded Moves . | . . . . . . . . . . . . . Propulsion Burnouts . | . . . . . . . . . . . . . Robots Hopped 4 | . . . . . . . . . . . . 4 Potential Cave-ins . | . . . . . . . . . . . . . Cave-ins Triggered . | . . . . . . . . . . . . . Exploration Rate (%) 38 | 3 21 62 3 81 10 98 4 57 . 87 19 11 Regions Visited 12 Branch Regions 3 Pre-discovered Areas . | . . . . . . . . . . . . . Known Exits Taken 4 | . . . . . 1 . 1 . 1 . 1 . Unknown Exits Taken 5 | 1 1 1 1 1 . . . . . . . . Scrap Searched 6 | . . . . 6 . . . . . . . . Spaces Dug 98 | . . . . . . 79 . 12 . 7 . . Terrain Destroyed 442 | . . . . . . 197 1 39 . 41 158 6 Melee 58 | . . . . . . 46 . 12 . . . . Projectile 101 | . . . . . . 46 1 11 . 9 28 6 AOE 283 | . . . . . . 105 . 16 . 32 130 . Terrain Rammed . | . . . . . . . . . . . . . Walls Destroyed . | . . . . . . . . . . . . . Machines Disabled . | . . . . . . . . . . . . . Actions | -11 -10 -10 -10 -9 -6 -6 -6 -6 -5 -5 -4 -3 --------- Run | Yrd Mat Min Sub Scr Fac Gar Fac Gar Fac DSF Fac Res Total 6394 | 34 62 223 15 1335 536 1691 124 851 2 185 867 469 Wait 220 | . . 5 1 1 61 56 1 35 . 23 33 4 Move 5185 | 32 61 206 14 1296 394 1243 106 657 2 100 659 415 Hop 4 | . . . . . . . . . . . . 4 Pick Up 104 | . 1 . . 21 16 31 2 11 . 6 13 3 Fast Attach 63 | 2 . . . 4 11 13 . 7 . 5 12 9 Attach 55 | . . 1 . 1 8 11 . 2 . 5 20 7 Detach 19 | . . . . 2 4 2 . . . 1 5 5 Swap 61 | . . . . 1 3 23 4 8 . 4 18 . Drop 102 | . . . . 9 10 39 2 16 . 6 16 4 Fire 321 | . . . . . 29 102 9 39 . 35 89 18 Melee 199 | . . . . . . 139 . 60 . . . . Ram . | . . . . . . . . . . . . . Kick . | . . . . . . . . . . . . . Crush 13 | . . 11 . . . . . . . . 2 . Escape Stasis 48 | . . . . . . 32 . 16 . . . . Rewire . | . . . . . . . . . . . . . Trap . | . . . . . . . . . . . . . Miscellaneous . | . . . . . . . . . . . . . Route ------- -11/Scrapyard -10/Materials (discovered 2 exits: [*Min x2]) -10/Mines -10/Subcaves -9/Scraptown (discovered 2 exits: *Fac x2) -6/Factory -6/Garrison (discovered 3 exits: *Fac x3) -6/Factory -6/Garrison (discovered 2 exits: *Fac x2) -5/Factory -5/DSF -4/Factory -3/Research (discovered 3 exits: Arm / Qua x2) History --------- Turn | Location | Event 6 | -11/Scrapyard | Discovered new exit (range 16) 21 | -11/Scrapyard | Entered Materials 21 | -10/Materials | Discovered new exit (range 8) 42 | -10/Materials | Discovered new exit (range 15) 53 | -10/Materials | Entered Mines 178 | -10/Mines | Discovered new exit (range 8) 182 | -10/Mines | Entered Subcaves 183 | -10/Subcaves | Approached by a straggling Scientist 190 | -10/Subcaves | Scientist uncovered a shortcut to Scraptown 191 | -10/Subcaves | Entered Scraptown 228 | -9/Scraptown | Visited UFD Registry 228 | -9/Scraptown | Registered with UFD as "Cogkit" 313 | -9/Scraptown | Build established: Mutant 324 | -9/Scraptown | Visited DA-N13 Charitable Foundation 328 | -9/Scraptown | Found DCF Scrap (28 items) 354 | -9/Scraptown | Visited Infowarlord's Domain 357 | -9/Scraptown | Found Exp. Terrain Scanner 380 | -9/Scraptown | Visited Analyses Database 391 | -9/Scraptown | Visited Supply Room 498 | -9/Scraptown | Discovered new exit (range 11) 992 | -9/Scraptown | Visited Supply Room 1069 | -9/Scraptown | Visited Cyclists 1080 | -9/Scraptown | Entered Cyclist Reading Room 1253 | -9/Scraptown | Visited Red Mages 1331 | -9/Scraptown | Visited The Evicted 1344 | -9/Scraptown | Visited IN-MT5's Study 1597 | -9/Scraptown | Met Optimus 1597 | -9/Scraptown | Accepted into 0bPrime 1675 | -9/Scraptown | Discovered new exit (range 3) 1679 | -9/Scraptown | Entered Factory 1679 | -6/Factory | Evolved 8 slots: Propulsion x3, Utility x4, Weapon x1 1976 | -6/Factory | Build established: Gunner 2489 | -6/Factory | Identified exit to Garrison 2489 | -6/Factory | Entered Garrison 2843 | -6/Garrison | Triggered checkpoint 2979 | -6/Garrison | Garrison Relay disabled 3069 | -6/Garrison | Build established: Scavenger-Mutant 3128 | -6/Garrison | Spotted B-75 Beast 3140 | -6/Garrison | Destroyed B-75 Beast 3171 | -6/Garrison | Triggered checkpoint 3198 | -6/Garrison | Lost 5 parts (1p3n1u) 3204 | -6/Garrison | Destroyed 7 combat bots 3225 | -6/Garrison | Triggered checkpoint 3447 | -6/Garrison | Garrison Relay disabled 3493 | -6/Garrison | Build established: Mutant 3505 | -6/Garrison | Discovered new exit (range 13) 3621 | -6/Garrison | Triggered checkpoint 3643 | -6/Garrison | Rescued a captive Derelict 3954 | -6/Garrison | Discovered new exit (range 10) 3984 | -6/Garrison | Installed Relay Interface Framework 4225 | -6/Garrison | Triggered checkpoint 4268 | -6/Garrison | Garrison Relay disabled 4379 | -6/Garrison | Triggered checkpoint 4581 | -6/Garrison | Discovered new exit (range 10) 4594 | -6/Garrison | Found embedded Infiltrators 4930 | -6/Garrison | Garrison Relay disabled 4961 | -6/Garrison | Entered Factory 5123 | -6/Factory | Identified exit to Garrison 5123 | -6/Factory | Entered Garrison 5392 | -6/Garrison | Triggered checkpoint 5415 | -6/Garrison | Core integrity fell below 50% 5479 | -6/Garrison | Destroyed 8 combat bots 5487 | -6/Garrison | Triggered checkpoint 5513 | -6/Garrison | Triggered checkpoint 5515 | -6/Garrison | Found embedded Infiltrators 5722 | -6/Garrison | Garrison Relay disabled 5776 | -6/Garrison | Build established: Bothacker-Mutant 5988 | -6/Garrison | Discovered new exit (range 12) 6077 | -6/Garrison | Triggered checkpoint 6106 | -6/Garrison | Build established: Bothacker-Tank 6125 | -6/Garrison | Triggered checkpoint 6138 | -6/Garrison | System corruption reached 10% 6271 | -6/Garrison | Discovered new exit (range 15) 6300 | -6/Garrison | Expanded RIF knowledge: Program Shield 6370 | -6/Garrison | Garrison Relay disabled 6427 | -6/Garrison | Entered Factory 6427 | -5/Factory | Evolved 2 slots: Utility x2 6431 | -5/Factory | Identified exit to DSF 6431 | -5/Factory | Entered DSF 6453 | -5/DSF | Build established: Bothacker-Mutant 6483 | -5/DSF | Additional patrols routed to DSF 6697 | -5/DSF | Sterilization system engaged 6717 | -5/DSF | Ambient heat levels rising (+10) 6728 | -5/DSF | Discovered new exit (range 16) 6732 | -5/DSF | Ambient heat levels rising (+10) 6747 | -5/DSF | Ambient heat levels rising (+10) 6752 | -5/DSF | Entered Factory 6752 | -4/Factory | Evolved 2 slots: Utility x1, Weapon x1 6837 | -4/Factory | Fabricated Biometal Heavy Treads? 7059 | -4/Factory | Build established: Hacker-Tank 7502 | -4/Factory | First assault squad dispatched 7533 | -4/Factory | Loaded intel: 8 recycling unit locations 7621 | -4/Factory | Attached CPS modules to H-71 Marshal. 7697 | -4/Factory | Scrapoids reinforcements arrived? 7702 | -4/Factory | Lost 13 parts (2p2n4u5w) 7879 | -4/Factory | Discovered new exit (range 30) 7892 | -4/Factory | Identified exit to Research 7893 | -4/Factory | Entered Research 7893 | -3/Research | Evolved 2 slots: Power x1, Utility x1 7918 | -3/Research | Identified exit to Armory 7918 | -3/Research | Identified exit to Quarantine 8023 | -3/Research | System corruption reached 10% 8059 | -3/Research | Lost 4 parts (1p1n2u) 8119 | -3/Research | Core integrity fell below 50% 8128 | -3/Research | Lost 4 parts (2n2u) 8215 | -3/Research | Core integrity fell below 20% 8225 | -3/Research | Destroyed by P-80 Master with Gamma Rifle Last Messages --------------- 08186_ Destroyed Imp. Surge Thruster. 08186_ C-35 Carver destroyed. 08189_ Acquired Melee Analysis Suite. 08192_ System corrupted: Component data lost. 08194_ Penetrated by Slug. 08194_ Slug penetrates Wall. 08211_ Acquired 16 matter. 08212_ Slug penetrates Wall. 08212_ O-32 Director: "IFF HANDSHAKE FAILED. SECURING TERMINAL." 08212_ Field Propulsion Array destroyed. 08214_ Triggered Fusion Bomb Trap. 08214_ An explosion rips through the floor. 08214_ Q-thruster destroyed. 08214_ K-01 Serf destroyed. 08214_ Knocked back. 08218_ R-10 Processor collects Wheel+. 08220_ System corrupted: Energy discharge (-27). 08222_ ALERT: Hostiles spotted, dispatching reinforcements to Terminal R011. Map ----- +----------------------------------------------------+ | ?????????????????????????????????????????????????? | | ?????????????????????????????????????????????????? | | ?????????????????????????????????????????????????? | | ?????????????????????????????????????????????????? | | ?????????????????????????????????????????????????? | | ?????????????????????????????????????????????????? | | ?????????????????????????????????????????????????? | | ?????????????????????????????????????????????????? | | ?????????????????????????????????????????????????? | | ?????????????????????????????????????????????????? | | ??????????????????????? k???????????????????????? | | ?????????????????????+ ???????????????????????? | | ?????????????????????# ???????????????????????? | | ?????????????????????#A ???????????????????????? | | ?????????????????????# k???????????????????????? | | ?????????????????????# ???????????????????????? | | ?????????????????????# ???????????????????????? | | ?????????????????????# w#######????????????????? | | ?????????????????????+ # ????????????????? | | ?????????????????????# # #?????????????? | | ?????????????????????# # "" ##????????????? | | ?????????????????????# # """ #????????????? | | ?????????????????????# pw# "T !Y#?????????????? | | ?????????????????????# # """ #?????????????? | | ?????????????????????# p# "" #?????????????? | | ?????????????????????# @/ #?????????????? | | ?????????????????????# # #?????????????? | | ?????????????????????# ##########??????##?????? | | ?????????????????????# ########?????? ??????? | | ?????????????????????# #???? ???????? | | ?????????????????????# #?? ????????? | | ?????????????????????# # "" "?????????? | | ?????????????????????# + ""T"?????????? | | ??????????????????########;## # """?????????? | | ??????????????????# ! !# #??? ????????? | | ??????????? ?????# # #??????? ??????? | | ??????????? ????# # #???????????????? | | ???????????? ???# """ # #???????????????? | | ????????????? ??# """ # #???????????????? | | ?????????????? ?# """ [# #???????????????? | | ??????????????? ## #???????????????? | | ???????????????? "# % #???????????????? | | ????????+##+########### %! ########????????? | | ???????? % #????????? | | ???????+ % H #????????? | | ???????# % #????????? | | ???????/ % % %= +????????# | | ????????????######+##" # !##### #????????# | | ??????????????? ]# ""G"" # #????????# | | ????????????# # "" "" # ########?# | +----------------------------------------------------+ Best States ------------- Heat Dissipation 74 Energy Generation 27 Energy Capacity 340 Matter Stores 543 Matter Capacity 550 Sight Range 22 Terrain Scan Range 30 Terrain Scan Density 210 Armor Coverage 1200 Resistance: TH 15 Core Shielding 30 Utility Shielding 33 Weapon Shielding 66 Evasion (%) 62 Targeting Accuracy 6 Melee Accuracy 11 Target Analysis 6 Recoil Reduction 5 Matter Filtering 30 Kinecelleration 40 Offensive Hacking 42 Relay Coupler Types 1 Relay Coupler Value 75 Item Schematics ----------------- None Robot Schematics ------------------ None Fabricated ------------ Biometal Heavy Treads | x1 | -4/Factory | Preloaded Repaired ---------- Nothing Studied --------- Wheel | -6/Factory | Hacked Com. Wheel | -6/Factory | Hacked Med. Treads | -4/Factory | Hacked Remote Datajack | -4/Factory | Hacked Alien Tech Used ----------------- None Achievements -------------- None Challenges ------------ None Game ------ Seed ScrapTractorTriangulator Manual? 0 Play Time 01:33:07 Cumulative 395.7 hours Start 2025.11.11 @ 00:46:11 End 2025.11.11 @ 02:33:17 Sessions 1 Manual Loads 0 Difficulty Rogue Special Mode None Game No. 366 Rogue 366 Adventurer 0 Explorer 0 Win Type - Total 3 Types 2/1/0/0/0/0/0/0/0/0 Lore% 84 Gallery% 83 Achievement% 62 Wizard Run 0 Options --------- Layout 1 ASCII 0 Keyboard 0 Movement Numpad Keybinds 0 Fullscreen 1 Font 24/Smallcaps Map View 50x35 Zoom Use 0% Tactical HUD 1 Map Filters NONE Filters NONE Steam 1 RUN: 5f1ec59d-19f1-4b3f-a624-23862ad6d357